[Event "*** Titled Tuesday Blitz"]
[Site "Chess.com"]
[Date "2021.03.02"]
[Round "7"]
[White "publicaccountcze"]
[Black "pedro_nascimento85"]
[Result "1-0"]
[WhiteElo "2204"]
[BlackElo "2091"]
[TimeControl "180+1"]
[EndTime "11:18:15 PST"]
[Termination "publicaccountcze won by resignation"]

1. d4 {[%clk 0:02:57.8]} 1... d5 {[%clk 0:01:28.6]} 2. c4 {[%clk 0:02:58.7]}
2... e6 {[%clk 0:01:25.3]} 3. Nc3 {[%clk 0:02:57.5]} 3... Be7 {[%clk 0:01:23.9]}
4. cxd5 {[%clk 0:02:57.2]} 4... exd5 {[%clk 0:01:22.2]} 5. Bf4 {[%clk
0:02:52.7]} 5... Nf6 {[%clk 0:01:18.5]} 6. e3 {[%clk 0:02:52.3]} 6... O-O {[%clk
0:01:17]} 7. Bd3 {[%clk 0:02:51.6]} 7... c6 {[%clk 0:01:07.1]} 8. Nge2 {[%clk
0:02:51.2]} 8... Nh5 {[%clk 0:00:49.5]} 9. Be5 {[%clk 0:02:50.3]} 9... Bd6
{[%clk 0:00:39]} 10. Bg3 {[%clk 0:02:45.8]} 10... Nxg3 {[%clk 0:00:20]} 11. hxg3
{[%clk 0:02:42.1]} 11... h6 {[%clk 0:00:19.1]} 12. Qc2 {[%clk 0:02:26.2]} 12...
b5 {[%clk 0:00:18.3]} 13. a3 {[%clk 0:02:24]} 13... a5 {[%clk 0:00:18.4]} 14.
O-O {[%clk 0:02:12.9]} 14... Bb7 {[%clk 0:00:18.3]} 15. b3 {[%clk 0:02:07.1]}
15... Nd7 {[%clk 0:00:18.4]} 16. e4 {[%clk 0:02:00]} 16... dxe4 {[%clk
0:00:16.1]} 17. Nxe4 {[%clk 0:01:58.7]} 17... Be7 {[%clk 0:00:15.9]} 18. Rfd1
{[%clk 0:01:50.1]} 18... Rc8 {[%clk 0:00:16.1]} 19. Nc5 {[%clk 0:01:49.8]} 19...
Nxc5 {[%clk 0:00:15.1]} 20. dxc5 {[%clk 0:01:49.4]} 20... Qc7 {[%clk 0:00:14.4]}
21. Bh7+ {[%clk 0:01:36.1]} 21... Kh8 {[%clk 0:00:13.5]} 22. Nf4 {[%clk
0:01:35.8]} 22... Qe5 {[%clk 0:00:11]} 23. b4 {[%clk 0:01:18.3]} 23... axb4
{[%clk 0:00:11.9]} 24. axb4 {[%clk 0:01:17.4]} 24... Bg5 {[%clk 0:00:09.7]} 25.
Bf5 {[%clk 0:01:13.3]} 25... Rcd8 {[%clk 0:00:08.8]} 26. Nh3 {[%clk 0:00:58.6]}
26... Bf6 {[%clk 0:00:05.9]} 27. Rac1 {[%clk 0:00:53.9]} 27... Rd4 {[%clk
0:00:04.2]} 28. Rxd4 {[%clk 0:00:43.8]} 28... Qxd4 {[%clk 0:00:04.1]} 29. Rd1
{[%clk 0:00:36.1]} 29... Qxb4 {[%clk 0:00:03.5]} 30. Rd7 {[%clk 0:00:35.1]}
30... Qb2 {[%clk 0:00:03.1]} 31. Qxb2 {[%clk 0:00:33.5]} 31... Bxb2 {[%clk
0:00:02.9]} 32. Rxb7 {[%clk 0:00:33]} 32... Kg8 {[%clk 0:00:03.3]} 33. Bd7
{[%clk 0:00:32.1]} 33... Rd8 {[%clk 0:00:03.1]} 34. Bxc6 {[%clk 0:00:30.3]} 1-0

[Event "*** Titled Tuesday Blitz"]
[Site "Chess.com"]
[Date "2021.03.02"]
[Round "7"]
[White "Fy_Rakotomaharo"]
[Black "Gurvich_Vitaly"]
[Result "0-1"]
[WhiteElo "2737"]
[BlackElo "2603"]
[TimeControl "180+1"]
[EndTime "11:18:17 PST"]
[Termination "Gurvich_Vitaly won by checkmate"]

1. d4 {[%clk 0:03:00.9]} 1... d5 {[%clk 0:02:57.4]} 2. c4 {[%clk 0:02:59.5]}
2... e6 {[%clk 0:02:57.1]} 3. cxd5 {[%clk 0:02:59.9]} 3... exd5 {[%clk 0:02:58]}
4. Nc3 {[%clk 0:03:00.3]} 4... h6 {[%clk 0:02:57]} 5. Bf4 {[%clk 0:03:00.1]}
5... c6 {[%clk 0:02:56.8]} 6. e3 {[%clk 0:03:00.6]} 6... Bd6 {[%clk 0:02:57.4]}
7. Bxd6 {[%clk 0:02:59.1]} 7... Qxd6 {[%clk 0:02:58.3]} 8. Bd3 {[%clk
0:02:59.1]} 8... Ne7 {[%clk 0:02:58.8]} 9. Qc2 {[%clk 0:02:58.6]} 9... O-O
{[%clk 0:02:57.6]} 10. Nf3 {[%clk 0:02:58.7]} 10... Nd7 {[%clk 0:02:55.2]} 11.
O-O {[%clk 0:02:57.5]} 11... Nf6 {[%clk 0:02:55.1]} 12. Rab1 {[%clk 0:02:55.1]}
12... a5 {[%clk 0:02:54.2]} 13. Rfc1 {[%clk 0:02:53.8]} 13... Re8 {[%clk
0:02:49.1]} 14. Na4 {[%clk 0:02:52]} 14... g6 {[%clk 0:02:03.2]} 15. Nb6 {[%clk
0:02:47.9]} 15... Ra7 {[%clk 0:02:00.9]} 16. Nxc8 {[%clk 0:02:40.5]} 16... Rxc8
{[%clk 0:01:58.9]} 17. Ne5 {[%clk 0:02:41.2]} 17... Kg7 {[%clk 0:01:58.7]} 18.
f4 {[%clk 0:02:38.5]} 18... Re8 {[%clk 0:01:58.5]} 19. Rf1 {[%clk 0:02:33.9]}
19... Qd8 {[%clk 0:01:57.7]} 20. Rf3 {[%clk 0:02:29]} 20... a4 {[%clk
0:01:51.7]} 21. h4 {[%clk 0:02:16.9]} 21... Ne4 {[%clk 0:00:57.3]} 22. Bxe4
{[%clk 0:01:58.9]} 22... dxe4 {[%clk 0:00:58.2]} 23. Qxe4 {[%clk 0:01:59.5]}
23... Nf5 {[%clk 0:00:57.9]} 24. h5 {[%clk 0:01:55.1]} 24... f6 {[%clk
0:00:47.5]} 25. hxg6 {[%clk 0:01:55.4]} 25... Nd6 {[%clk 0:00:47.6]} 26. Qd3
{[%clk 0:01:53.3]} 26... fxe5 {[%clk 0:00:41.1]} 27. fxe5 {[%clk 0:01:53.6]}
27... b5 {[%clk 0:00:42]} 28. Rc1 {[%clk 0:01:43.1]} 28... Nc4 {[%clk
0:00:38.4]} 29. Rcf1 {[%clk 0:01:43.2]} 29... Nxe5 {[%clk 0:00:34.7]} 30. Qe2
{[%clk 0:01:37.3]} 30... Nxf3+ {[%clk 0:00:34.7]} 31. Qxf3 {[%clk 0:01:38.2]}
31... Qe7 {[%clk 0:00:30.9]} 32. e4 {[%clk 0:01:36.6]} 32... Rf8 {[%clk
0:00:27.9]} 33. Qc3 {[%clk 0:01:32.5]} 33... Rxf1+ {[%clk 0:00:26.9]} 34. Kxf1
{[%clk 0:01:33.4]} 34... Qf6+ {[%clk 0:00:25.8]} 35. Kg1 {[%clk 0:01:32.7]}
35... Rd7 {[%clk 0:00:25.1]} 36. e5 {[%clk 0:01:32.5]} 36... Qxg6 {[%clk
0:00:25.1]} 37. d5 {[%clk 0:01:25.1]} 37... Rxd5 {[%clk 0:00:20.6]} 38. e6+
{[%clk 0:01:24.6]} 38... Qf6 {[%clk 0:00:20.6]} 39. Qg3+ {[%clk 0:01:25.2]}
39... Rg5 {[%clk 0:00:13.8]} 40. Qc7+ {[%clk 0:01:25]} 40... Kg6 {[%clk
0:00:14.3]} 41. Qd7 {[%clk 0:01:15.6]} 41... Re5 {[%clk 0:00:10.7]} 42. Qe8+
{[%clk 0:01:14.3]} 42... Kg5 {[%clk 0:00:10.3]} 43. Qg8+ {[%clk 0:01:12.6]}
43... Kf5 {[%clk 0:00:09.8]} 44. g4+ {[%clk 0:01:04.1]} 44... Ke4 {[%clk
0:00:08.6]} 45. Qf7 {[%clk 0:01:05]} 45... Qxe6 {[%clk 0:00:07.1]} 46. Qh7+
{[%clk 0:01:02.2]} 46... Kd4 {[%clk 0:00:06.6]} 47. Kh2 {[%clk 0:01:01.9]} 47...
Re2+ {[%clk 0:00:06.5]} 48. Kh3 {[%clk 0:01:02.4]} 48... Qe3+ {[%clk 0:00:06.9]}
49. Kh4 {[%clk 0:01:02.9]} 49... Rh2# {[%clk 0:00:07.5]} 0-1

[Event "*** Titled Tuesday Blitz"]
[Site "Chess.com"]
[Date "2021.03.02"]
[Round "7"]
[White "DLR7"]
[Black "Yaryi_sergey"]
[Result "1-0"]
[WhiteElo "2634"]
[BlackElo "2484"]
[TimeControl "180+1"]
[EndTime "11:18:20 PST"]
[Termination "DLR7 won on time"]

1. e4 {[%clk 0:03:00.9]} 1... c6 {[%clk 0:02:08.9]} 2. d4 {[%clk 0:02:59.2]}
2... Na6 {[%clk 0:02:03.2]} 3. Nf3 {[%clk 0:02:51.3]} 3... g6 {[%clk 0:02:02.1]}
4. Nc3 {[%clk 0:02:46]} 4... Nc7 {[%clk 0:02:01.3]} 5. Bd3 {[%clk 0:02:43.7]}
5... Bg7 {[%clk 0:01:59.6]} 6. h3 {[%clk 0:02:41.7]} 6... d5 {[%clk 0:01:58.6]}
7. O-O {[%clk 0:02:41.7]} 7... Nf6 {[%clk 0:01:52.9]} 8. e5 {[%clk 0:02:38.3]}
8... Nd7 {[%clk 0:01:52.5]} 9. Ne2 {[%clk 0:02:33]} 9... Ne6 {[%clk 0:01:49.7]}
10. c3 {[%clk 0:02:31.3]} 10... b6 {[%clk 0:01:49]} 11. Nf4 {[%clk 0:02:25.1]}
11... Ndf8 {[%clk 0:01:47]} 12. Re1 {[%clk 0:02:21.6]} 12... Nxf4 {[%clk
0:01:33.8]} 13. Bxf4 {[%clk 0:02:22.5]} 13... Ne6 {[%clk 0:01:34.4]} 14. Be3
{[%clk 0:02:16.9]} 14... O-O {[%clk 0:01:35.3]} 15. Qd2 {[%clk 0:02:13.7]} 15...
f5 {[%clk 0:01:28.8]} 16. Bh6 {[%clk 0:02:08.8]} 16... c5 {[%clk 0:01:20.7]} 17.
Rac1 {[%clk 0:02:04.1]} 17... c4 {[%clk 0:01:19.9]} 18. Bc2 {[%clk 0:02:02.2]}
18... b5 {[%clk 0:01:19.9]} 19. b3 {[%clk 0:01:59.6]} 19... a6 {[%clk
0:01:17.3]} 20. Rb1 {[%clk 0:01:57.9]} 20... Bb7 {[%clk 0:01:16.3]} 21. h4
{[%clk 0:01:45]} 21... Rc8 {[%clk 0:01:11.9]} 22. h5 {[%clk 0:01:43.3]} 22...
Qc7 {[%clk 0:01:10.3]} 23. Nh4 {[%clk 0:01:38.7]} 23... Kf7 {[%clk 0:00:51.6]}
24. b4 {[%clk 0:01:34.5]} 24... Rg8 {[%clk 0:00:46.7]} 25. a4 {[%clk 0:01:32.4]}
25... Bc6 {[%clk 0:00:45.1]} 26. axb5 {[%clk 0:01:27.4]} 26... axb5 {[%clk
0:00:43.9]} 27. g4 {[%clk 0:01:25.9]} 27... gxh5 {[%clk 0:00:23.3]} 28. Bxf5
{[%clk 0:01:21.5]} 28... hxg4 {[%clk 0:00:21.5]} 29. Bxe6+ {[%clk 0:01:12.6]}
29... Kxe6 {[%clk 0:00:19.2]} 30. Bxg7 {[%clk 0:01:12.5]} 30... Rxg7 {[%clk
0:00:18.3]} 31. Qh6+ {[%clk 0:01:11.5]} 31... Kf7 {[%clk 0:00:18.2]} 32. Nf5
{[%clk 0:01:08.2]} 32... Rcg8 {[%clk 0:00:13.8]} 33. Nd6+ {[%clk 0:00:43.3]}
33... exd6 {[%clk 0:00:04.6]} 34. Qf6+ {[%clk 0:00:41.9]} 34... Ke8 {[%clk
0:00:04.2]} 35. exd6+ {[%clk 0:00:42.4]} 35... Kd7 {[%clk 0:00:04]} 36. dxc7
{[%clk 0:00:41.5]} 36... Kxc7 {[%clk 0:00:03.7]} 37. Re7+ {[%clk 0:00:40.1]} 1-0

[Event "*** Titled Tuesday Blitz"]
[Site "Chess.com"]
[Date "2021.03.02"]
[Round "7"]
[White "Arseniy_Nesterov"]
[Black "As0nchess"]
[Result "0-1"]
[WhiteElo "2781"]
[BlackElo "2641"]
[TimeControl "180+1"]
[EndTime "11:18:26 PST"]
[Termination "As0nchess won by resignation"]

1. d4 {[%clk 0:03:00.9]} 1... Nf6 {[%clk 0:02:59.2]} 2. c4 {[%clk 0:03:01.4]}
2... e6 {[%clk 0:02:59.4]} 3. Nf3 {[%clk 0:03:01.1]} 3... d5 {[%clk 0:02:58.9]}
4. Nc3 {[%clk 0:03:01.2]} 4... Bb4 {[%clk 0:02:58.9]} 5. Qb3 {[%clk 0:03:00.5]}
5... c5 {[%clk 0:02:57.8]} 6. dxc5 {[%clk 0:03:00.4]} 6... Na6 {[%clk
0:02:56.8]} 7. cxd5 {[%clk 0:03:00.4]} 7... exd5 {[%clk 0:02:56.1]} 8. Bg5
{[%clk 0:02:56.2]} 8... Be6 {[%clk 0:02:49.7]} 9. Nd4 {[%clk 0:02:49]} 9... O-O
{[%clk 0:02:46.8]} 10. e3 {[%clk 0:02:37.5]} 10... Bxc5 {[%clk 0:02:45.1]} 11.
Rd1 {[%clk 0:02:21.4]} 11... Nb4 {[%clk 0:02:38.5]} 12. Be2 {[%clk 0:02:11.5]}
12... h6 {[%clk 0:02:34.5]} 13. Bh4 {[%clk 0:02:09.4]} 13... Nc6 {[%clk
0:02:31.9]} 14. Nxe6 {[%clk 0:02:05]} 14... fxe6 {[%clk 0:02:31.6]} 15. O-O
{[%clk 0:02:00.3]} 15... Qe7 {[%clk 0:02:30.7]} 16. Bg3 {[%clk 0:01:44]} 16...
Kh8 {[%clk 0:02:27.1]} 17. a3 {[%clk 0:01:41]} 17... a6 {[%clk 0:02:21.4]} 18.
Bd3 {[%clk 0:01:33.3]} 18... Rad8 {[%clk 0:02:20.1]} 19. Ne2 {[%clk 0:01:32.6]}
19... e5 {[%clk 0:02:18.9]} 20. Bb1 {[%clk 0:01:30.3]} 20... Bd6 {[%clk
0:02:06.4]} 21. Nc3 {[%clk 0:01:25.1]} 21... d4 {[%clk 0:01:59.8]} 22. Ne4
{[%clk 0:01:13.5]} 22... Nxe4 {[%clk 0:01:41.9]} 23. Bxe4 {[%clk 0:01:14.4]}
23... dxe3 {[%clk 0:01:41.1]} 24. fxe3 {[%clk 0:01:06.7]} 24... Bc5 {[%clk
0:01:41.1]} 25. Bb1 {[%clk 0:00:50.8]} 25... Rxd1 {[%clk 0:01:36.1]} 26. Rxd1
{[%clk 0:00:51.7]} 26... e4 {[%clk 0:01:36.4]} 27. Kh1 {[%clk 0:00:44.7]} 27...
Ne5 {[%clk 0:01:26.4]} 28. Bxe4 {[%clk 0:00:32.2]} 28... Ng4 {[%clk 0:01:26.1]}
29. Bb1 {[%clk 0:00:24.5]} 29... Nxe3 {[%clk 0:01:13.9]} 30. Qd3 {[%clk
0:00:23.8]} 30... Nf5 {[%clk 0:01:12.5]} 31. Bf4 {[%clk 0:00:18.2]} 31... Qh4
{[%clk 0:00:55.1]} 32. g3 {[%clk 0:00:16.4]} 32... Qg4 {[%clk 0:00:50.9]} 33.
Re1 {[%clk 0:00:15.8]} 33... Bf2 {[%clk 0:00:45.2]} 34. Re5 {[%clk 0:00:14.7]}
34... g6 {[%clk 0:00:42.7]} 35. Re2 {[%clk 0:00:11.1]} 35... Bd4 {[%clk
0:00:35.4]} 36. Qd2 {[%clk 0:00:06.5]} 36... Qf3+ {[%clk 0:00:34]} 37. Rg2
{[%clk 0:00:04.7]} 37... Qf1+ {[%clk 0:00:33.9]} 0-1

[Event "*** Titled Tuesday Blitz"]
[Site "Chess.com"]
[Date "2021.03.02"]
[Round "7"]
[White "Lion-Al-Messi"]
[Black "elcandado"]
[Result "1-0"]
[WhiteElo "2442"]
[BlackElo "2597"]
[TimeControl "180+1"]
[EndTime "11:18:26 PST"]
[Termination "Lion-Al-Messi won on time"]

1. d4 {[%clk 0:03:00.9]} 1... Nf6 {[%clk 0:02:59.1]} 2. Nf3 {[%clk 0:02:59.1]}
2... d5 {[%clk 0:02:58.4]} 3. Nc3 {[%clk 0:02:58.2]} 3... Bf5 {[%clk 0:02:56.1]}
4. Bg5 {[%clk 0:02:58.3]} 4... Nbd7 {[%clk 0:02:54.8]} 5. e3 {[%clk 0:02:58.5]}
5... e6 {[%clk 0:02:54.3]} 6. Bd3 {[%clk 0:02:58.8]} 6... Bg6 {[%clk 0:02:53.1]}
7. O-O {[%clk 0:02:57.1]} 7... Be7 {[%clk 0:02:49.8]} 8. Ne5 {[%clk 0:02:57]}
8... Nxe5 {[%clk 0:02:47.4]} 9. dxe5 {[%clk 0:02:57.9]} 9... Nd7 {[%clk
0:02:46.6]} 10. Bxe7 {[%clk 0:02:58.8]} 10... Qxe7 {[%clk 0:02:47]} 11. f4
{[%clk 0:02:59.7]} 11... O-O-O {[%clk 0:02:40]} 12. a4 {[%clk 0:02:57.1]} 12...
Nc5 {[%clk 0:02:35.6]} 13. b4 {[%clk 0:02:56]} 13... Nxd3 {[%clk 0:02:31.8]} 14.
cxd3 {[%clk 0:02:56.9]} 14... d4 {[%clk 0:02:28.9]} 15. Nb5 {[%clk 0:02:55]}
15... dxe3 {[%clk 0:02:27.6]} 16. d4 {[%clk 0:02:49.4]} 16... Qxb4 {[%clk
0:02:16.2]} 17. Rc1 {[%clk 0:02:48.1]} 17... Kb8 {[%clk 0:02:02.8]} 18. Qf3
{[%clk 0:02:30.7]} 18... Rd7 {[%clk 0:01:37.2]} 19. d5 {[%clk 0:02:12.3]} 19...
a6 {[%clk 0:01:33.1]} 20. Nc3 {[%clk 0:02:00.7]} 20... Rhd8 {[%clk 0:00:42.7]}
21. Qxe3 {[%clk 0:01:56.2]} 21... Rxd5 {[%clk 0:00:41.5]} 22. Nxd5 {[%clk
0:01:53.1]} 22... Rxd5 {[%clk 0:00:42.4]} 23. Rfd1 {[%clk 0:01:42.1]} 23... Be4
{[%clk 0:00:24.5]} 24. Rxd5 {[%clk 0:01:38.4]} 24... Bxd5 {[%clk 0:00:25.4]} 25.
Qc5 {[%clk 0:01:36.5]} 25... Qxc5+ {[%clk 0:00:21.7]} 26. Rxc5 {[%clk
0:01:37.4]} 26... b6 {[%clk 0:00:21.1]} 27. Rc3 {[%clk 0:01:36.9]} 27... Kb7
{[%clk 0:00:18.3]} 28. a5 {[%clk 0:01:35.4]} 28... b5 {[%clk 0:00:16.5]} 29. Kf2
{[%clk 0:01:31.3]} 29... b4 {[%clk 0:00:16.5]} 30. Rc1 {[%clk 0:01:14.7]} 30...
b3 {[%clk 0:00:16.3]} 31. Ke3 {[%clk 0:01:14.5]} 31... c5 {[%clk 0:00:16.6]} 32.
Kd3 {[%clk 0:01:12]} 32... Kc6 {[%clk 0:00:15.9]} 33. Kc3 {[%clk 0:01:09.2]}
33... Kb5 {[%clk 0:00:16.2]} 34. Ra1 {[%clk 0:01:06]} 34... c4 {[%clk
0:00:13.5]} 35. g4 {[%clk 0:01:05.2]} 35... g6 {[%clk 0:00:12]} 36. Rd1 {[%clk
0:00:57.1]} 36... Kxa5 {[%clk 0:00:09.6]} 37. f5 {[%clk 0:00:56.2]} 37... Kb5
{[%clk 0:00:06.4]} 38. f6 {[%clk 0:00:29.5]} 1-0

[Event "*** Titled Tuesday Blitz"]
[Site "Chess.com"]
[Date "2021.03.02"]
[Round "7"]
[White "AliKa2810"]
[Black "UmutErdemGunduz"]
[Result "1-0"]
[WhiteElo "2563"]
[BlackElo "2367"]
[TimeControl "180+1"]
[EndTime "11:18:27 PST"]
[Termination "AliKa2810 won by resignation"]

1. Nf3 {[%clk 0:03:00.9]} 1... Nf6 {[%clk 0:02:59.2]} 2. g3 {[%clk 0:03:01.3]}
2... g6 {[%clk 0:02:59.4]} 3. Bg2 {[%clk 0:03:01.9]} 3... Bg7 {[%clk 0:02:59.8]}
4. c4 {[%clk 0:03:01.7]} 4... c5 {[%clk 0:02:59.2]} 5. O-O {[%clk 0:03:00.2]}
5... O-O {[%clk 0:02:59.6]} 6. d4 {[%clk 0:02:58.9]} 6... cxd4 {[%clk
0:02:59.8]} 7. Nxd4 {[%clk 0:02:59.8]} 7... Nc6 {[%clk 0:03:00.1]} 8. Nc3 {[%clk
0:02:59.7]} 8... Nxd4 {[%clk 0:02:59.2]} 9. Qxd4 {[%clk 0:02:58.8]} 9... d6
{[%clk 0:02:59.8]} 10. Qd2 {[%clk 0:02:54.7]} 10... Be6 {[%clk 0:02:55.3]} 11.
b3 {[%clk 0:02:51.9]} 11... Rb8 {[%clk 0:02:54.4]} 12. Bb2 {[%clk 0:02:50.9]}
12... a6 {[%clk 0:02:54]} 13. Rac1 {[%clk 0:02:39.3]} 13... b5 {[%clk
0:02:52.7]} 14. Nd5 {[%clk 0:02:38.9]} 14... bxc4 {[%clk 0:02:26.1]} 15. Nxf6+
{[%clk 0:02:38.3]} 15... Bxf6 {[%clk 0:02:06.3]} 16. Bxf6 {[%clk 0:02:37.3]}
16... exf6 {[%clk 0:02:06.4]} 17. bxc4 {[%clk 0:02:37.7]} 17... Qc7 {[%clk
0:02:06.3]} 18. Rfd1 {[%clk 0:02:35]} 18... Rfd8 {[%clk 0:02:05.8]} 19. Qd4
{[%clk 0:02:28]} 19... f5 {[%clk 0:01:49.4]} 20. h4 {[%clk 0:02:23.3]} 20... Qc5
{[%clk 0:01:42.8]} 21. h5 {[%clk 0:02:07.3]} 21... Qxd4 {[%clk 0:01:37]} 22.
Rxd4 {[%clk 0:02:08.2]} 22... Kf8 {[%clk 0:01:36.7]} 23. h6 {[%clk 0:01:57.9]}
23... Ke7 {[%clk 0:01:35.7]} 24. Rc3 {[%clk 0:01:49]} 24... Rb6 {[%clk 0:01:27]}
25. a3 {[%clk 0:01:25.3]} 25... Rc8 {[%clk 0:01:25.3]} 26. f4 {[%clk 0:01:10.9]}
26... Rb2 {[%clk 0:01:11.8]} 27. Kf2 {[%clk 0:01:09.2]} 27... Rc5 {[%clk
0:01:01.5]} 28. Bf3 {[%clk 0:01:08.8]} 28... Ra2 {[%clk 0:01:00.9]} 29. Re3
{[%clk 0:01:05.9]} 29... Kd7 {[%clk 0:00:55.9]} 30. Red3 {[%clk 0:01:05.2]}
30... Bxc4 {[%clk 0:00:34.5]} 31. Rxd6+ {[%clk 0:01:03.6]} 31... Kc7 {[%clk
0:00:15.8]} 32. Rd7+ {[%clk 0:01:03]} 32... Kb6 {[%clk 0:00:15.6]} 33. Rb7+
{[%clk 0:01:01.8]} 33... Ka5 {[%clk 0:00:15]} 34. Rc3 {[%clk 0:01:02]} 34... Rc8
{[%clk 0:00:12]} 35. Rxf7 {[%clk 0:00:43.9]} 35... Bxf7 {[%clk 0:00:07.1]} 36.
Rxc8 {[%clk 0:00:43.5]} 36... Rxa3 {[%clk 0:00:06.7]} 37. Rc7 {[%clk 0:00:43.5]}
37... Bg8 {[%clk 0:00:06.6]} 38. Rg7 {[%clk 0:00:43.2]} 38... Bc4 {[%clk
0:00:04.1]} 39. Rxh7 {[%clk 0:00:42.8]} 39... Rb3 {[%clk 0:00:04.3]} 40. Rb7
{[%clk 0:00:39]} 40... Rc3 {[%clk 0:00:02.6]} 41. h7 {[%clk 0:00:37.9]} 1-0

[Event "*** Titled Tuesday Blitz"]
[Site "Chess.com"]
[Date "2021.03.02"]
[Round "7"]
[White "XanoushX_X"]
[Black "fabianvivasz"]
[Result "1-0"]
[WhiteElo "2486"]
[BlackElo "2332"]
[TimeControl "180+1"]
[EndTime "11:18:28 PST"]
[Termination "XanoushX_X won by resignation"]

1. d4 {[%clk 0:02:42.7]} 1... Nf6 {[%clk 0:02:58]} 2. c4 {[%clk 0:02:42.9]} 2...
g6 {[%clk 0:02:52]} 3. Nc3 {[%clk 0:02:43]} 3... d5 {[%clk 0:02:48.3]} 4. cxd5
{[%clk 0:02:43.2]} 4... Nxd5 {[%clk 0:02:46.1]} 5. Bd2 {[%clk 0:02:43.1]} 5...
Nb6 {[%clk 0:02:42.5]} 6. Nf3 {[%clk 0:02:42.3]} 6... Bg7 {[%clk 0:02:42.1]} 7.
Qc1 {[%clk 0:02:42.7]} 7... h6 {[%clk 0:02:21.3]} 8. h4 {[%clk 0:02:40.1]} 8...
Nc6 {[%clk 0:02:08.2]} 9. h5 {[%clk 0:02:40]} 9... g5 {[%clk 0:02:05.2]} 10. e3
{[%clk 0:02:36.7]} 10... e5 {[%clk 0:01:47.7]} 11. dxe5 {[%clk 0:02:27.7]} 11...
Nxe5 {[%clk 0:01:48.6]} 12. Nxe5 {[%clk 0:02:26.8]} 12... Bxe5 {[%clk
0:01:47.5]} 13. Be2 {[%clk 0:02:27.2]} 13... Bf5 {[%clk 0:01:37.7]} 14. e4
{[%clk 0:02:04.6]} 14... Be6 {[%clk 0:01:26.7]} 15. f4 {[%clk 0:01:46.5]} 15...
gxf4 {[%clk 0:01:19.4]} 16. Bxf4 {[%clk 0:01:47.4]} 16... Qf6 {[%clk 0:00:55.1]}
17. O-O {[%clk 0:01:26.6]} 17... O-O-O {[%clk 0:00:44.7]} 18. Bxe5 {[%clk
0:01:25.5]} 18... Qxe5 {[%clk 0:00:43.5]} 19. Qf4 {[%clk 0:01:26.1]} 19... Qxf4
{[%clk 0:00:35.7]} 20. Rxf4 {[%clk 0:01:25.4]} 20... Rd2 {[%clk 0:00:34.4]} 21.
b3 {[%clk 0:00:54.4]} 21... Rc2 {[%clk 0:00:33.3]} 22. Rf3 {[%clk 0:00:54.1]}
22... Bg4 {[%clk 0:00:27.9]} 23. Re3 {[%clk 0:00:54]} 23... Rxc3 {[%clk
0:00:27]} 24. Bxg4+ {[%clk 0:00:52.8]} 24... Kb8 {[%clk 0:00:20.4]} 25. Rxc3
{[%clk 0:00:52.4]} 25... Re8 {[%clk 0:00:20.6]} 26. Re1 {[%clk 0:00:50.9]} 26...
c6 {[%clk 0:00:20.4]} 27. Rf3 {[%clk 0:00:49.7]} 27... Re7 {[%clk 0:00:20.4]}
28. Rf6 {[%clk 0:00:48.7]} 28... Nd5 {[%clk 0:00:18.6]} 29. Rxh6 {[%clk
0:00:48.6]} 29... Nf4 {[%clk 0:00:17.1]} 30. Rf6 {[%clk 0:00:46.5]} 30... Nd3
{[%clk 0:00:16.6]} 31. Re2 {[%clk 0:00:44.4]} 31... Ne5 {[%clk 0:00:17.1]} 32.
Bf3 {[%clk 0:00:44.1]} 32... Kc7 {[%clk 0:00:17.7]} 33. h6 {[%clk 0:00:44]}
33... Re8 {[%clk 0:00:16.2]} 34. h7 {[%clk 0:00:44.2]} 34... Rh8 {[%clk
0:00:16.4]} 35. Rh6 {[%clk 0:00:44.2]} 35... Ng6 {[%clk 0:00:16.3]} 36. Bg4
{[%clk 0:00:42.7]} 36... Kd6 {[%clk 0:00:15.7]} 37. Bf5 {[%clk 0:00:42.7]} 37...
Ke5 {[%clk 0:00:12.3]} 38. Bxg6 {[%clk 0:00:42.3]} 38... fxg6 {[%clk 0:00:13.2]}
39. Rf2 {[%clk 0:00:41.9]} 39... Kxe4 {[%clk 0:00:12.6]} 40. Rf7 {[%clk
0:00:41.6]} 40... g5 {[%clk 0:00:12]} 41. Rg6 {[%clk 0:00:40.8]} 1-0

[Event "*** Titled Tuesday Blitz"]
[Site "Chess.com"]
[Date "2021.03.02"]
[Round "7"]
[White "Atco84"]
[Black "Make_it_shine060"]
[Result "1-0"]
[WhiteElo "2418"]
[BlackElo "2254"]
[TimeControl "180+1"]
[EndTime "11:18:29 PST"]
[Termination "Atco84 won by resignation"]

1. d4 {[%clk 0:03:00.9]} 1... Nf6 {[%clk 0:01:16.8]} 2. c4 {[%clk 0:02:59.7]}
2... g6 {[%clk 0:01:16.7]} 3. g3 {[%clk 0:03:00.1]} 3... Bg7 {[%clk 0:01:16.1]}
4. Bg2 {[%clk 0:03:00.5]} 4... d5 {[%clk 0:01:15.7]} 5. cxd5 {[%clk 0:02:52.6]}
5... Nxd5 {[%clk 0:01:15.2]} 6. Nf3 {[%clk 0:02:53.1]} 6... O-O {[%clk
0:01:14.9]} 7. O-O {[%clk 0:02:51.5]} 7... c5 {[%clk 0:01:15.1]} 8. e4 {[%clk
0:02:44.7]} 8... Nb4 {[%clk 0:01:02.1]} 9. d5 {[%clk 0:02:36.9]} 9... e6 {[%clk
0:00:57.4]} 10. a3 {[%clk 0:02:31.2]} 10... N4a6 {[%clk 0:00:55.5]} 11. Nc3
{[%clk 0:02:28.9]} 11... exd5 {[%clk 0:00:52.2]} 12. exd5 {[%clk 0:02:24]} 12...
Bg4 {[%clk 0:00:47.5]} 13. h3 {[%clk 0:02:17.7]} 13... Bxf3 {[%clk 0:00:41]} 14.
Qxf3 {[%clk 0:02:16.2]} 14... Nd7 {[%clk 0:00:41.2]} 15. d6 {[%clk 0:02:08.6]}
15... Rb8 {[%clk 0:00:32.1]} 16. Rd1 {[%clk 0:02:06.8]} 16... Ne5 {[%clk
0:00:28.5]} 17. Qd5 {[%clk 0:02:05.7]} 17... b5 {[%clk 0:00:19.7]} 18. Bf4
{[%clk 0:01:52.9]} 18... Nc4 {[%clk 0:00:17.8]} 19. Rab1 {[%clk 0:01:39.8]}
19... Nxb2 {[%clk 0:00:16.1]} 20. Rxb2 {[%clk 0:01:12.2]} 20... Bxc3 {[%clk
0:00:15.1]} 21. Rc2 {[%clk 0:01:12.4]} 21... Bg7 {[%clk 0:00:14.9]} 22. h4
{[%clk 0:00:56.5]} 22... Qd7 {[%clk 0:00:13.4]} 23. Kh2 {[%clk 0:00:48.3]} 23...
b4 {[%clk 0:00:13.3]} 24. Bh3 {[%clk 0:00:40.3]} 24... Qa4 {[%clk 0:00:12.8]}
25. Rcd2 {[%clk 0:00:23.8]} 25... bxa3 {[%clk 0:00:12.3]} 26. d7 {[%clk
0:00:22.5]} 26... Nb4 {[%clk 0:00:11.8]} 27. Qxc5 {[%clk 0:00:13.4]} 27... a2
{[%clk 0:00:11.9]} 28. Bxb8 {[%clk 0:00:11.6]} 28... a1=Q {[%clk 0:00:11.4]} 29.
Rxa1 {[%clk 0:00:11.6]} 29... Qxa1 {[%clk 0:00:11.8]} 30. d8=Q {[%clk
0:00:11.4]} 30... Rxd8 {[%clk 0:00:09.5]} 31. Rxd8+ {[%clk 0:00:10.6]} 1-0